Cogmind - Beta 17 @@@ ROGUE MODE // 2026.08.21 @ 11:14:36 Player: Tuja Result: Destroyed by P-80 Master with Gamma Rifle Performance ------------- Evolutions (7) 3500 Regions Visited (12) 2400 Robots Destroyed (105) 525 Value Destroyed (5712) 5712 Prototype IDs (14) 280 Alien Tech Used (4) 800 Bonus (4457) 4457 TOTAL SCORE: 17674 Bonus ------- High Alert Combat Kills 357 Registered with UFD 300 Met Optimus in HQ 500 Met Imprinter 300 Used Core Reset Matrix 3000 Cogmind --------- Core Integrity 0/1300 Matter 102/300 Energy 70/100 System Corruption 12% Temperature Cool (0) Movement Rolling (130) Ox2 Location -3/Quarantine Parts ------- > --- POWER (1) -------- (None) > --- PROPULSION (4) --- Flexi-carbon Leg Centrium Wheel > --- UTILITY (14) ----- Advanced Heat Sink Advanced Heat Sink Advanced Heat Sink Large Storage Unit Experimental Signal Interpreter Improved Targeting Computer Advanced Target Analyzer Improved Power Shielding Makeshift Hacking Suite A0-MCA's Component Scanner > --- WEAPON (2) ------- Linear Accelerator > --- INVENTORY (15) --- Light Antimatter Reactor Biometal Leg Deep Structural Scanner Surveybot 24 Chip Mapping Drone Bay (3/3) Hacking Drone Bay (1/1) Dimensional Node Initializer Terrabomb Core Cannon Micro-nuke Launcher Advanced Remote Datajack Improved Plasma Cutter Peak State ------------ > --- POWER ------------ Particle Reactor > --- PROPULSION ------- Heavy Treads Armored Heavy Treads > --- UTILITY ---------- Advanced Heat Sink Advanced Heat Sink Advanced Heat Sink Advanced Heat Sink Advanced Cooling System Large Storage Unit Small Battery Experimental Signal Interpreter Advanced Target Analyzer Phase Armor Advanced Force Field Hacking Suite Makeshift Hacking Suite > --- WEAPON ----------- Matter Neutralizer Linear Accelerator > --- INVENTORY -------- Reinforced Fission Core Centrium Wheel Centrium Wheel Deep Structural Scanner Improved Terrain Scanner Surveybot 24 Chip A0-MCA's Component Scanner Mapping Drone Bay Hacking Drone Bay Terrabomb Gamma Rifle Enhanced Nova Cannon Micro-nuke Launcher Advanced Remote Datajack Improved Plasma Cutter [Rating: 148] Favorites ----------- Power Light Deuterium Engine Engine Light Deuterium Engine Power Core Reinforced Fission Core Reactor Particle Reactor Propulsion Armored Wheel Treads Armored Heavy Treads Leg Flexi-carbon Leg Wheel Armored Wheel Utility Large Storage Unit Device Advanced Heat Sink Storage Large Storage Unit Processor Experimental Signal Interpreter Hackware Makeshift Hacking Suite Protection Makeshift Kinetic Plating Artifact Phase Armor Weapon Matter Neutralizer Energy Gun Medium Laser Energy Cannon Matter Neutralizer Ballistic Gun Gauss Rifle Ballistic Cannon Linear Accelerator Launcher Micro-nuke Launcher Special Weapon Remote Datajack Special Melee Weapon Datajack Build | -11 -10 -10 -9 -6 -6 -6 -6 -5 -5 -4 -3 -3 ------- Run | Yrd Mat Sub Scr Fac Low Low Zio Pro Fac Fac Res Qua Slots Evolved 14 | . . . . 8 . . . . 2 2 2 . Power . | . . . . . . . . . . . . . Propulsion 2 | . . . . 2 . . . . . . . . Utility 12 | . . . . 6 . . . . 2 2 2 . Weapon . | . . . . . . . . . . . . . Parts Attached 108 | 7 8 7 10 11 1 . . 1 3 2 23 35 Power 8 | 1 . 1 2 . . . . . . . 3 1 Engine 5 | 1 . 1 2 . . . . . . . 1 . Core 1 | . . . . . . . . . . . . 1 Reactor 2 | . . . . . . . . . . . 2 . Propulsion 18 | 2 4 . 2 1 . . . . . . 4 5 Treads 5 | 2 . . . . . . . . . . 3 . Leg 4 | . . . . . . . . . . . . 4 Wheel 9 | . 4 . 2 1 . . . . . . 1 1 Hover . | . . . . . . . . . . . . . Flight . | . . . . . . . . . . . . . Utility 52 | 2 3 3 1 7 1 . . . 2 . 14 19 Device 27 | 1 1 1 . 3 1 . . . 1 . 7 12 Storage 7 | 1 2 . . . . . . . . . 2 2 Processor 5 | . . . . 2 . . . . . . . 3 Hackware 5 | . . . 1 2 . . . . . . 2 . Protection 7 | . . 2 . . . . . . 1 . 3 1 Artifact 1 | . . . . . . . . . . . . 1 Weapon 30 | 2 1 3 5 3 . . . 1 1 2 2 10 Energy Gun 5 | 2 . . . . . . . . . . . 3 Energy Cannon 6 | . . . . 1 . . . 1 . 1 1 2 Ballistic Gun 5 | . 1 . 3 . . . . . . . . 1 Ballistic Cannon 6 | . . 2 1 . . . . . . . 1 2 Launcher 3 | . . . . 1 . . . . . 1 . 1 Special Weapon 3 | . . 1 . 1 . . . . . . . 1 Impact Weapon . | . . . . . . . . . . . . . Slashing Weapon . | . . . . . . . . . . . . . Piercing Weapon . | . . . . . . . . . . . . . Special Melee Weapon 2 | . . . 1 . . . . . 1 . . . Unidentified Prototypes 6 | . . . . 1 . . . . 1 . . 4 Corrupted Parts 4 | . . . . . . . . . . . . 4 System Corruption 22 | . . . . . . . . . . . . 22 Parts Lost 49 | . . 3 . . . . . . . 2 10 34 Power 4 | . . 1 . . . . . . . . 1 2 Propulsion 7 | . . . . . . . . . . . 1 6 Utility 25 | . . 1 . . . . . . . 1 8 15 Weapon 13 | . . 1 . . . . . . . 1 . 11 Highest Loss Streak 10 | . . 2 . . . . . . . 2 1 10 To Critical Strikes . | . . . . . . . . . . . . . Average Backups 13 | 3 12 12 11 13 14 14 14 13 14 14 13 14 Power . | . 1 1 . . . . . . . . . . Propulsion 2 | 2 4 2 1 1 2 2 2 1 2 3 2 . Utility 6 | . 3 4 4 8 10 10 10 10 10 8 6 5 Weapon 3 | . 3 4 4 2 2 2 2 1 1 . 2 3 Tool/Special . | . . . . . . . . . . . . . Unused Backups 31 | . 3 1 4 . 1 1 1 1 1 . 6 12 Power 1 | . . . . . . . . . . . . 1 Propulsion 7 | . 2 . . . . . . 1 . . 3 1 Utility 9 | . . 1 1 . . . 1 . 1 . 1 4 Weapon 8 | . 1 . 3 . . 1 . . . . 1 2 Tool/Special 6 | . . . . . 1 . . . . . 1 4 Average Slot Usage (%) 83 | . 96 91 99 67 73 73 73 61 69 66 70 83 Engine 6 | . 14 5 14 6 6 6 6 6 5 5 . . Treads 2 | . 19 . . . . . . . . . 6 3 Wheel 13 | . 8 28 28 6 6 6 6 6 5 5 . 4 Device 11 | . 10 4 . 12 13 13 13 13 11 14 19 25 Storage 9 | . 14 14 14 6 6 6 6 6 5 5 4 9 Processor 3 | . . . . 5 6 6 6 6 5 5 4 11 Hackware 8 | . . . . 17 20 20 20 20 17 15 13 7 Protection 6 | . . 9 13 . . . . . 4 5 6 . Energy Gun 1 | . 26 3 . . . . . . . . . . Energy Cannon 2 | . . . . 6 6 6 6 . 5 5 4 2 Ballistic Gun 7 | . 1 8 22 2 . . . . . . 1 . Ballistic Cannon 2 | . . 12 2 . . . . . . . . 3 Special Weapon 1 | . . 3 . 1 6 6 6 . 3 2 . . Special Melee Weapon 1 | . . . 3 . . . . . 1 1 . . Peak Build Rating 148 | 9 12 16 27 70 71 72 72 72 85 95 125 148 Average Rating 62 | 6 9 12 19 65 70 71 71 63 84 90 108 121 On Entrance 54 | . 9 12 16 27 70 71 71 72 71 84 91 120 Avg Prop Armor Cover (%) 8 | . . . . . . . . . . . . 8 Naked Turns . | . . . . . . . . . . . . . Heaviest Build 125 | 13 88 40 42 48 41 41 41 41 58 68 108 125 Greatest Support 130 | 40 40 24 24 35 35 35 35 35 35 35 130 130 Greatest Overweight (x) 4 | . 3 1 1 1 1 1 1 1 1 1 4 4 Average Overweight (x) . | . . . 1 . . 1 1 . 1 1 . 1 Largest Inventory Capacity 25 | 8 25 15 15 15 15 15 15 15 15 15 15 15 Average Capacity 14 | 7 14 15 15 15 15 15 15 15 15 15 15 15 Most Carried 15 | 7 15 15 15 15 15 15 15 15 15 15 15 15 Average Carried 14 | 4 12 14 14 13 14 14 15 14 14 14 14 14 Final Capacity 15 | 8 15 15 15 15 15 15 15 15 15 15 15 15 Final Carried 15 | 7 15 15 15 15 15 15 15 13 15 15 15 13 Scrap Suit Usage (%) 38 | . . . . 98 100 99 100 100 88 99 81 3 Parts Cannibalized 10 | . . . . 1 1 . . . . . 8 . Class Distribution -------------------- 37% | Mutant 34% | Hacker-Mutant 22% | Scavenger-Mutant 4% | Derelict-Mutant Dominant Class ---------------- Mutant | -10/Materials Mutant | -10/Subcaves Mutant | -9/Scraptown Hacker-Mutant | -6/Factory Hacker-Mutant | -6/Lower Caves Hacker-Mutant | -6/Lower Caves Hacker-Mutant | -6/Zion Hacker-Mutant | -5/Proximity Caves Hacker-Mutant | -5/Factory Hacker-Mutant | -4/Factory Hacker-Mutant | -3/Research Scavenger-Mutant | -3/Quarantine Resources | -11 -10 -10 -9 -6 -6 -6 -6 -5 -5 -4 -3 -3 ----------- Run | Yrd Mat Sub Scr Fac Low Low Zio Pro Fac Fac Res Qua Matter Collected 3276 | 256 116 191 300 20 . 148 82 . 30 75 842 1216 Remotely . | . . . . . . . . . . . . . Salvage Created 4018 | 15 461 107 247 385 . . . . . 327 930 1546 Parts 179 | 5 15 6 10 27 . . . . . 7 46 63 Haulers Intercepted . | . . . . . . . . . . . . . Recyclers Shooed . | . . . . . . . . . . . . . Parts Field Recycled . | . . . . . . . . . . . . . Retrieved Matter . | . . . . . . . . . . . . . Parts Self-Destructed 8 | . . 8 . . . . . . . . . . Prevented 1 | . . . . . . 1 . . . . . . Parts Restored . | . . . . . . . . . . . . . Kills | -11 -10 -10 -9 -6 -6 -6 -6 -5 -5 -4 -3 -3 ------- Run | Yrd Mat Sub Scr Fac Low Low Zio Pro Fac Fac Res Qua Combat Hostiles Destroyed 83 | . 8 4 4 7 . . . . . 5 21 34 Guns 13 | . 7 1 2 . . . . . . . 1 2 Cannons 39 | . . 3 2 . . . . . . 2 11 21 AOE 22 | . . . . 7 . . . . . 3 4 8 Classes Destroyed 18 | 1 4 1 3 4 . . . . . 2 2 1 Worker 2 | . 2 . . . . . . . . . . . Builder 9 | . . . . 5 . . . . . 1 3 . Tunneler 1 | 1 . . . . . . . . . . . . Recycler 4 | . 1 . . 1 . . . . . 2 . . Operator 3 | . 1 . . 2 . . . . . . . . Watcher 3 | . . . . 2 . . . . . . 1 . Swarmer 11 | . . . . 4 . . . . . . 4 3 Cutter 3 | . . . . . . . . . . 3 . . Grunt 26 | . 8 . . 2 . . . . . . 3 13 Protector 1 | . . . . . . . . . . . . 1 Sentry 2 | . . . . . . . . . . . 2 . Hunter 10 | . . . . . . . . . . 2 4 4 Programmer 21 | . . . . 1 . . . . . . 7 13 Behemoth 1 | . . . . . . . . . . . 1 . Subdweller 4 | . . 4 . . . . . . . . . . Explorer 1 | . . . 1 . . . . . . . . . Guru 1 | . . . 1 . . . . . . . . . Scrapper 2 | . . . 2 . . . . . . . . . Best Kill Streak 8 | 1 3 2 2 8 . . . . . 5 4 8 Combat Bots Only 8 | . 3 2 2 4 . . . . . 3 4 8 Max Kills in Single Turn 8 | 1 1 1 1 8 . . . . . 3 2 2 Gunslinging . | . . . . . . . . . . . . . Exploded 4 | . . . . 4 . . . . . 1 1 2 Melee . | . . . . . . . . . . . . . Uniques/NPCs Destroyed . | . . . . . . . . . . . . . Combat | -11 -10 -10 -9 -6 -6 -6 -6 -5 -5 -4 -3 -3 -------- Run | Yrd Mat Sub Scr Fac Low Low Zio Pro Fac Fac Res Qua Hostile Shots Fired 815 | . 20 30 18 40 . . . . 17 19 218 453 Missed 244 | . 3 4 7 20 . . . . 5 5 63 137 Hits 571 | . 17 26 11 20 . . . . 12 14 155 316 Melee 3 | . . . 2 . . . . . . 1 . . Projectile 568 | . 17 26 9 20 . . . . 12 13 155 316 AOE 2 | . . . . . . . . . . 2 . . Critical Strikes 33 | . 1 . 2 2 . . . . . 2 1 25 Part Disruptions 3 | . . . . . . . . . . . 1 2 Damage Taken 12327 | . 203 495 264 365 . . . . 619 370 3667 6344 Core 1530 | . 14 61 42 15 . . . . 94 18 196 1090 Absorbed by Shields 515 | . . . . . . . . . . . 64 451 Reduced by Siege Mode 42 | . . . . . . . . . . . 42 . Redirected to Shielding 48 | . . . . . . . . . . . . 48 Regen/Repaired (Parts) 91 | . . . . 10 10 . . . . . 71 . Core Remaining (%) 87 | 100 . . 53 . . . . 98 90 98 . . Volleys Fired 379 | 1 30 26 18 19 4 1 18 4 17 28 83 130 Largest 2 | 2 2 2 2 2 1 1 1 1 1 2 2 2 Hottest 225 | 100 100 100 68 105 85 85 85 85 90 154 225 195 Shots Fired 564 | 2 60 48 34 20 4 1 18 4 17 33 113 210 Gun 154 | 2 60 20 27 . . . . . . . 19 26 Cannon 341 | . . 24 7 17 4 1 1 4 17 18 83 165 Launcher 31 | . . . . 1 . . . . . 5 11 14 Special 38 | . . 4 . 2 . . 17 . . 10 . 5 Kinetic 178 | . 2 40 34 1 . . . . . . 23 78 Thermal 295 | 2 58 8 . 17 4 1 1 4 17 18 79 86 Explosive 30 | . . . . . . . . . . 5 11 14 Electromagnetic 27 | . . . . . . . . . . . . 27 Robot Hit Streak 19 | 1 14 19 9 4 . . 9 . . 5 12 16 Robot Miss Streak 5 | . 4 2 2 1 . . 1 . . 4 4 5 Penetration Max . | . . . . . . . . . . . . . Secondary Targets 1 | . 1 . . . . . . . . . . . Max Gunslinging Chain 1 | . 1 . . . . . . . . . . . Shots Hit Robots 337 | 1 46 39 30 6 . . 15 . . 14 64 122 Core Hits 188 | 1 24 11 6 23 . . . . . 14 34 75 Critical Kills 8 | . . . . . . . . . . 1 6 1 Critical Parts Destroyed 1 | . . . 1 . . . . . . . . . Critical Strikes 31 | . 9 1 1 . . . . . . 1 6 13 Burn 9 | . 9 . . . . . . . . . . . Meltdown 8 | . . . . . . . . . . 1 6 1 Destroy 1 | . . . 1 . . . . . . . . . Blast 11 | . . 1 . . . . . . . . . 10 Corrupt 2 | . . . . . . . . . . . . 2 Melee Attacks 13 | . . . 10 . . . . . . . 3 . Impact . | . . . . . . . . . . . . . Slashing . | . . . . . . . . . . . . . Piercing . | . . . . . . . . . . . . . Sneak Attacks 10 | . . . 10 . . . . . . . . . Combat Hostiles . | . . . . . . . . . . . . . Follow-up Attacks . | . . . . . . . . . . . . . Damage Inflicted 15503 | 13 562 536 436 2102 . . . . . 1142 3416 7296 Guns 1826 | 13 562 156 326 . . . . . . . 275 494 Cannons 7052 | . . 380 110 108 . . . . . 324 1923 4207 Explosions 6625 | . . . . 1994 . . . . . 818 1218 2595 Melee . | . . . . . . . . . . . . . Ramming . | . . . . . . . . . . . . . Kinetic 3557 | . 7 486 436 160 . . . . . . 421 2047 Thermal 5177 | 13 555 50 . 176 . . . . . 367 1777 2239 Explosive 6101 | . . . . 1766 . . . . . 719 1218 2398 Electromagnetic 668 | . . . . . . . . . . 56 . 612 Impact . | . . . . . . . . . . . . . Slashing . | . . . . . . . . . . . . . Piercing . | . . . . . . . . . . . . . Highest Corruption 37 | . . . . 1 1 . . . . . 8 37 Average Corruption 10 | . . . . 1 1 . . . . . 5 13 Corruption Purged 1 | . . . . . 1 . . . . . . . Corruption Blocked . | . . . . . . . . . . . . . Effects 94 | . . . . . . . . . . . 26 68 Message Errors 22 | . . . . . . . . . . . 7 15 Matter Fused 17 | . . . . . . . . . . . 4 13 Heat Flow Errors 12 | . . . . . . . . . . . 2 10 Energy Discharges 11 | . . . . . . . . . . . 2 9 Parts Rejected 2 | . . . . . . . . . . . . 2 Parts Fused 2 | . . . . . . . . . . . 1 1 Data Loss (minor) 10 | . . . . . . . . . . . 5 5 Data Loss (major) 5 | . . . . . . . . . . . 1 4 Misfires 2 | . . . . . . . . . . . 1 1 Alerts 3 | . . . . . . . . . . . 1 2 Misdirections 1 | . . . . . . . . . . . . 1 Weapon Failures 7 | . . . . . . . . . . . 2 5 Overload Shots . | . . . . . . . . . . . . . Overflow Damage 498 | . . . 1 101 . . . . . 82 147 167 Projectiles 262 | . . . 1 8 . . . . . 38 87 128 Explosions 236 | . . . . 93 . . . . . 44 60 39 Melee . | . . . . . . . . . . . . . Knockbacks 36 | . . 9 . . . . . . . . 2 25 Impact . | . . . . . . . . . . . . . Kinetic 34 | . . 9 . . . . . . . . 2 23 Secondary 2 | . . . . . . . . . . . . 2 Self-Inflicted Damage 329 | . . . . 71 . . . . . . 82 176 Shots 10 | . . . . 2 . . . . . . 4 4 Rammed 1 | . . . . . . . . . . . 1 . Targets Rammed 1 | . . . . . . . . . . . 1 . Kicked . | . . . . . . . . . . . . . Crushed . | . . . . . . . . . . . . . Highest Temperature 309 | 39 309 . 91 24 22 27 27 44 89 150 258 206 Average Temperature 62 | 20 96 . 23 5 5 14 14 26 36 59 84 76 Received Heat Transfer 1319 | . 132 78 127 27 . . . . 108 21 190 636 Effects 1 | . 1 . . . . . . . . . . . Energy Bleed 1 | . 1 . . . . . . . . . . . Siege Activations 3 | . . . . . . . . . . . 3 . Total Turns 19 | . . . . . . . . . . . 19 . Longest Duration 12 | . . . . . . . . . . . 12 . Martial Activations . | . . . . . . . . . . . . . Shielding Activations . | . . . . . . . . . . . . . Robots Disrupted . | . . . . . . . . . . . . . Combat Hostiles . | . . . . . . . . . . . . . Robots Corrupted 2 | . . . . . . . . . . . . 2 Combat Hostiles 2 | . . . . . . . . . . . . 2 Parts Fried 6 | . . . 3 . . . . . . . . 3 Impact Corruptions . | . . . . . . . . . . . . . Robots Melted 9 | . 1 . . . . . . . . 1 6 1 Combat Hostiles 7 | . 1 . . . . . . . . . 5 1 Parts Melted 23 | . 5 1 2 . . . . . . 1 11 3 Heat Transferred 6799 | 37 2331 148 . 198 . . . . . 383 1665 2037 Parts Sabotaged . | . . . . . . . . . . . . . Parts Stolen . | . . . . . . . . . . . . . Parts Stripped . | . . . . . . . . . . . . . Power Chain Reactions 2 | . . . . . . . . . . 1 . 1 Alert | -11 -10 -10 -9 -6 -6 -6 -6 -5 -5 -4 -3 -3 ------- Run | Yrd Mat Sub Scr Fac Low Low Zio Pro Fac Fac Res Qua Maximum Alert Level 2 | . . . . 1 . . . . . 1 1 2 Low Security (%) 66 | 100 100 . . 92 . . . . 100 96 89 8 Level 1 14 | . . . . 7 . . . . . 3 10 33 Level 2 18 | . . . . . . . . . . . . 58 Level 3 . | . . . . . . . . . . . . . Level 4 . | . . . . . . . . . . . . . Level 5 . | . . . . . . . . . . . . . High Security . | . . . . . . . . . . . . . Max Security . | . . . . . . . . . . . . . Peak Influence 564 | 5 70 . . 377 . . . . 159 321 332 564 Initial 177 | . . . . . . . . . 159 21 164 177 Average 183 | . 26 . . 100 . . . . 91 21 107 403 Influence Increases 3716 | 5 210 . . 728 . . . 15 226 402 779 1351 Destroy 0b10 Robot/C 1480 | . 160 . . 140 . . . . . 100 420 660 Destroy 0b10 Robot/NC 125 | 5 20 . . 45 . . . . . 25 20 10 Destroy Leader 292 | . 30 . . 24 . . . . . 24 102 112 Trap Triggered on 0b10 60 | . . . . 10 . . . . . 10 40 . Successful Hack 135 | . . . . 49 . . . . 52 . 30 4 Disable Machine 540 | . . . . 240 . . . . . 15 45 240 Anti-Garrison Action 150 | . . . . . . . . . . 150 . . Destroy Structure 649 | . . . . 145 . . . . 24 48 122 310 Advance Influence 150 | . . . . . . . . . 150 . . . Partial Spotted 15 | . . . . 15 . . . . . . . . Lose Combat Pursuer 120 | . . . . 60 . . . 15 . 30 . 15 Influence Decreases 3182 | 5 201 9 . 359 267 102 . . 196 134 776 1133 Entered New Map 481 | . . 5 . . 137 21 . . 6 24 149 139 Time Decay 1917 | 5 201 4 . 209 130 81 . . 190 90 433 574 Lost Part 450 | . . . . . . . . . . 20 90 340 Lost Ally 80 | . . . . . . . . . . . . 80 Purge Threat 254 | . . . . 150 . . . . . . 104 . Squads Dispatched 29 | . 2 . . 4 . . . . 2 6 5 10 Investigation 4 | . 1 . . . . . . . 2 . . 1 Extermination 9 | . . . . 1 . . . . . 1 4 3 Reinforcement 9 | . 1 . . 3 . . . . . 2 1 2 Assault 5 | . . . . . . . . . . 2 . 3 Garrison 2 | . . . . . . . . . . 1 . 1 Intercept . | . . . . . . . . . . . . . Searches Triggered . | . . . . . . . . . . . . . Construction Impeded 3 | . . . . 2 . . . . . . 1 . Haulers Reinforced 1 | . . . . 1 . . . . . . . . Active Scanning Responses . | . . . . . . . . . . . . . Cargo Convoy Interrupts . | . . . . . . . . . . . . . Stealth | -11 -10 -10 -9 -6 -6 -6 -6 -5 -5 -4 -3 -3 --------- Run | Yrd Mat Sub Scr Fac Low Low Zio Pro Fac Fac Res Qua Distress Signals 7 | . 1 . . . . . . 3 . 1 2 . Communications Jammed . | . . . . . . . . . . . . . Distress Signals . | . . . . . . . . . . . . . Times Spotted 141 | . 11 5 12 14 . . . 3 4 9 28 55 Peak Tracking Total 8 | . 2 2 7 6 . . . 2 3 3 4 8 Tactical Retreats 7 | . . 1 . 2 . . . 1 . 2 . 1 Traps | -11 -10 -10 -9 -6 -6 -6 -6 -5 -5 -4 -3 -3 ------- Run | Yrd Mat Sub Scr Fac Low Low Zio Pro Fac Fac Res Qua Traps Triggered 5 | . 1 . . . . . . . . . . 4 Indirectly . | . . . . . . . . . . . . . Trap Hack Attempts 58 | . . . . . . . . . 29 29 . . Triggered . | . . . . . . . . . . . . . Disarmed 1 | . . . . . . . . . 1 . . . Reprogrammed 16 | . . . . 6 . . . . 4 6 . . Reused 6 | . . . . 1 . . . . . 1 4 . Traps Extracted 10 | . . . . . . . . . 4 6 . . Installed 10 | . . . . . . . . . . 5 5 . Triggered 6 | . . . . 1 . . . . . 1 4 . Most Traps Carried 6 | . . . . . . . . . 4 6 5 . Objects Rigged 13 | . . . . 13 . . . . . . . . Exploded 6 | . . . . 6 . . . . . . . . Machines | -11 -10 -10 -9 -6 -6 -6 -6 -5 -5 -4 -3 -3 ---------- Run | Yrd Mat Sub Scr Fac Low Low Zio Pro Fac Fac Res Qua Machines Disabled 39 | . . . 2 16 . . . . . 2 3 16 Max in Single Turn 5 | . . . 1 5 . . . . . 1 1 2 Garrison Access 3 | . . . . . . . . . 1 1 . 1 Machines Repaired . | . . . . . . . . . . . . . Machines Dismantled . | . . . . . . . . . . . . . Machines Sabotaged . | . . . . . . . . . . . . . Overloaded Fab Kills . | . . . . . . . . . . . . . Hacking | -11 -10 -10 -9 -6 -6 -6 -6 -5 -5 -4 -3 -3 --------- Run | Yrd Mat Sub Scr Fac Low Low Zio Pro Fac Fac Res Qua Machines Accessed 42 | . 1 1 5 11 . . . . 6 2 9 7 Terminals 21 | . . . . 8 . . . . 3 . 4 6 Fabricators 4 | . . . . 2 . . . . 1 . 1 . Repair Stations . | . . . . . . . . . . . . . Recycling Units 5 | . 1 . . . . . . . . 2 2 . Scanalyzers 3 | . . . . 1 . . . . . . 2 . Garrison Access 3 | . . . . . . . . . 2 . . 1 Total Hacks 139 | . 3 4 34 38 . . . . 24 2 22 12 Successful 88 | . 1 4 34 16 . . . . 16 2 11 4 Failed 50 | . 2 . . 22 . . . . 8 . 10 8 Catastrophic 8 | . . . . 3 . . . . 1 . 1 3 Database Lockouts 1 | . . . . . . . . . . . 1 . Manual 57 | . . . . 31 . . 1 . 16 . 8 1 Terminals 71 | . . . . 31 . . . . 15 . 15 10 Fabricators 10 | . . . . 5 . . . . 3 . 2 . Repair Stations . | . . . . . . . . . . . . . Recycling Units 8 | . 3 . . . . . . . . 2 3 . Scanalyzers 4 | . . . . 2 . . . . . . 2 . Garrison Access 8 | . . . . . . . . . 6 . . 2 Terminal Hacks 61 | . . 4 34 7 . . . . 8 . 5 3 Record 41 | . . 4 34 . . . . . . . . 3 Part Schematic 1 | . . . . 1 . . . . . . . . Robot Analysis 4 | . . . . 4 . . . . . . . . Level Access Points 1 | . . . . . . . . . 1 . . . Branch Access Points 1 | . . . . . . . . . . . 1 . Fabricator Index 1 | . . . . . . . . . 1 . . . Garrison Index 1 | . . . . . . . . . 1 . . . Unreport Threat 2 | . . . . 1 . . . . . . 1 . Locate Traps 2 | . . . . . . . . . 1 . 1 . Reprogram Traps 2 | . . . . 1 . . . . . . 1 . Dispatch Records 1 | . . . . . . . . . 1 . . . Recall Investigation 1 | . . . . . . . . . 1 . . . Zone Layout 3 | . . . . . . . . . 2 . 1 . Fabricator Hacks 3 | . . . . 1 . . . . 2 . . . Network Status 1 | . . . . 1 . . . . . . . . Load Schematic 1 | . . . . . . . . . 1 . . . Build 1 | . . . . . . . . . 1 . . . Repair Station Hacks . | . . . . . . . . . . . . . Recycling Unit Hacks 5 | . 1 . . . . . . . . 2 2 . Retrieve Matter 1 | . . . . . . . . . . . 1 . Retrieve Components 4 | . 1 . . . . . . . . 2 1 . Scanalyzer 3 | . . . . 2 . . . . . . 1 . Retrieve Study 3 | . . . . 2 . . . . . . 1 . Garrison Access Hacks 2 | . . . . . . . . . 1 . . 1 Seal Access 2 | . . . . . . . . . 1 . . 1 Unauthorized Hacks 14 | . . . . 6 . . . . 5 . 3 . Terminals 11 | . . . . 5 . . . . 4 . 2 . Assimilate 2 | . . . . 1 . . . . 1 . . . Botnet 7 | . . . . 2 . . . . 3 . 2 . Detonate 2 | . . . . 2 . . . . . . . . Fabricators 2 | . . . . 1 . . . . . . 1 . Fabnet 2 | . . . . 1 . . . . . . 1 . Repair Stations . | . . . . . . . . . . . . . Recycling Units . | . . . . . . . . . . . . . Scanalyzers . | . . . . . . . . . . . . . Garrison Access 1 | . . . . . . . . . 1 . . . Watchers 1 | . . . . . . . . . 1 . . . Data Cores Recovered . | . . . . . . . . . . . . . Used . | . . . . . . . . . . . . . Hacking Detections 26 | . 1 . . 10 . . . . 5 . 6 4 Full Trace Events 3 | . . . . . . . . . 2 . . 1 Feedback Events . | . . . . . . . . . . . . . Feedback Blocked . | . . . . . . . . . . . . . Robot Schematics Acquired 3 | . . . . . . . 3 . . . . . Robots Built . | . . . . . . . . . . . . . Authchips . | . . . . . . . . . . . . . Time . | . . . . . . . . . . . . . Total Robot Build Rating . | . . . . . . . . . . . . . Part Schematics Acquired 16 | . . . . 1 . . 15 . . . . . Parts Built 2 | . . . . . . . . . 2 . . . Authchips . | . . . . . . . . . . . . . Time 31 | . . . . . . . . . 31 . . . Total Part Build Rating 4 | . . . . . . . . . 4 . . . Part Studies Acquired 3 | . . . . 2 . . . . . . 1 . Parts Repaired . | . . . . . . . . . . . . . Time . | . . . . . . . . . . . . . Parts Recycled . | . . . . . . . . . . . . . Recycled Matter . | . . . . . . . . . . . . . Retrieved Matter . | . . . . . . . . . . . . . Retrieved Components 10 | . 2 . . . . . . . . 6 2 . Parts Scanalyzed . | . . . . . . . . . . . . . Part Schematics Acquired . | . . . . . . . . . . . . . Parts Damaged . | . . . . . . . . . . . . . Bothacking | -11 -10 -10 -9 -6 -6 -6 -6 -5 -5 -4 -3 -3 ------------ Run | Yrd Mat Sub Scr Fac Low Low Zio Pro Fac Fac Res Qua Used RIF Installer . | . . . . . . . . . . . . . Robots Hacked 31 | . . . 10 1 . . 13 . . 2 2 3 Non-combat 10 | . . . 4 . . . 5 . . 1 . . Combat 14 | . . . 6 . . . 8 . . . . . Robot Hacks Applied 26 | . . . 10 . . . 15 . . 1 . . parse_system 26 | . . . 10 . . . 15 . . 1 . . Manual 8 | . . . . 1 . . . . . 2 2 3 Relay Couplers Released 3 | . . . . . . . . . . 3 . . Machine Destruction 3 | . . . . . . . . . . 3 . . Fabnet Peak Effective % 3 | . . . . . . . . 3 3 1 . . Robots Rewired . | . . . . . . . . . . . . . Allies Hacked . | . . . . . . . . . . . . . Hacks Repelled . | . . . . . . . . . . . . . Allies | -11 -10 -10 -9 -6 -6 -6 -6 -5 -5 -4 -3 -3 -------- Run | Yrd Mat Sub Scr Fac Low Low Zio Pro Fac Fac Res Qua Total Allies 2 | . . . . 1 . . . . 1 . . . Largest Group 1 | . . . . 1 . . . . 1 1 1 . Highest-Rated Group 26 | . . . . 26 . . . . 26 26 26 . Highest-Rated Ally 26 | . . . . 26 . . . . 26 26 26 . Initial UFD Resources 33 | . . . . 24 24 24 24 28 28 30 33 33 Total Orders 1 | . . . . . . . . . . . . 1 EXPLORE 1 | . . . . . . . . . . . . 1 Ally Attacks . | . . . . . . . . . . . . . Total Damage . | . . . . . . . . . . . . . Kills . | . . . . . . . . . . . . . Allies Corrupted . | . . . . . . . . . . . . . Allies Melted 1 | . . . 1 . . . . . . . . . Intel | -11 -10 -10 -9 -6 -6 -6 -6 -5 -5 -4 -3 -3 ------- Run | Yrd Mat Sub Scr Fac Low Low Zio Pro Fac Fac Res Qua Active Infowar (turns) 3285 | 47 66 29 . 545 261 270 729 227 379 381 31 320 Sensors 2551 | . . . . 304 261 270 729 227 379 381 . . Terrain 433 | 47 66 . . . . . . . . . . 320 Traps 241 | . . . . 241 . . . . . . . . Seismic 29 | . . 29 . . . . . . . . . . ECM 31 | . . . . . . . . . . . 31 . Robot Analysis Total 4 | . . . . 4 . . . . . . . . Derelict Logs Recovered 8 | . . 1 3 . 2 1 . 1 . . . . Drone Launches 9 | . . . . . . . . . . . . 9 Drone Recoveries 1 | . . . . . . . . . . . . 1 Exploration | -11 -10 -10 -9 -6 -6 -6 -6 -5 -5 -4 -3 -3 ------------- Run | Yrd Mat Sub Scr Fac Low Low Zio Pro Fac Fac Res Qua Turns Passed 11007 | 116 532 1103 2954 604 269 270 729 227 387 442 1620 1754 Spaces Moved 9170 | 62 281 947 2362 821 242 373 1163 321 459 456 880 803 Core 2 | 2 . . . . . . . . . . . . Treads 940 | 60 156 . . . . . . . . . 513 211 Legs 87 | . . . . . . . . . . . . 87 Wheels 8141 | . 125 947 2362 821 242 373 1163 321 459 456 367 505 Hover . | . . . . . . . . . . . . . Flight . | . . . . . . . . . . . . . Fastest Speed 50 | 50 105 90 105 50 50 60 60 50 60 60 60 110 Average Speed 92 | 156 137 100 105 59 59 60 60 50 60 60 126 151 Slowest Speed 320 | 160 320 105 105 60 60 60 60 60 60 60 170 240 Overloaded Moves . | . . . . . . . . . . . . . Propulsion Burnouts . | . . . . . . . . . . . . . Robots Hopped . | . . . . . . . . . . . . . Potential Cave-ins 5 | . . . . . . . . . 5 . . . Cave-ins Triggered 1 | . . . . . . . . . 1 . . . Teleports 1 | . . . . . . . . . . . . 1 Exploration Rate (%) 43 | 3 38 52 89 26 44 49 87 43 14 9 21 86 Regions Visited 12 Branch Regions 7 Pre-discovered Areas 14 | . . 1 7 . 1 1 4 . . . . . Known Exits Taken 9 | . . . 1 1 1 1 1 1 1 1 1 . Unknown Exits Taken 3 | 1 1 1 . . . . . . . . . . Scrap Searched 23 | . . 11 6 . . 3 2 1 . . . . Spaces Dug 48 | . . . . 3 2 1 . 4 14 3 19 2 Terrain Destroyed 558 | . . . . 177 2 1 . 4 17 27 134 196 Melee . | . . . . . . . . . . . . . Projectile 92 | . . . . 3 2 1 . 4 17 5 35 25 AOE 466 | . . . . 174 . . . . . 22 99 171 Terrain Rammed . | . . . . . . . . . . . . . Walls Destroyed . | . . . . . . . . . . . . . Machines Disabled . | . . . . . . . . . . . . . Actions | -11 -10 -10 -9 -6 -6 -6 -6 -5 -5 -4 -3 -3 --------- Run | Yrd Mat Sub Scr Fac Low Low Zio Pro Fac Fac Res Qua Total 11096 | 76 368 1047 2799 919 362 418 1184 384 553 597 1269 1120 Wait 1127 | . 28 51 358 47 109 41 2 52 34 66 234 105 Move 9157 | 61 280 946 2361 820 241 372 1162 320 457 455 879 803 Hop . | . . . . . . . . . . . . . Pick Up 91 | 7 13 7 15 10 2 2 1 . 7 4 12 11 Fast Attach 64 | 7 1 1 3 2 . . . . . 1 14 35 Attach 43 | . . 3 1 7 1 . . 3 1 3 9 15 Detach 18 | . . 1 . 5 . . . 3 . 1 6 2 Swap 48 | . 9 5 12 2 1 . . . 3 1 9 6 Drop 86 | . 7 7 21 7 4 2 1 2 4 4 14 13 Fire 379 | 1 30 26 18 19 4 1 18 4 17 28 83 130 Melee 13 | . . . 10 . . . . . . . 3 . Ram . | . . . . . . . . . . . . . Kick . | . . . . . . . . . . . . . Crush 1 | . . . . . . . . . . . 1 . Escape Stasis 1 | . . . . . . . . . 1 . . . Rewire . | . . . . . . . . . . . . . Trap 68 | . . . . . . . . . 29 34 5 . Miscellaneous . | . . . . . . . . . . . . . Route ------- -11/Scrapyard -10/Materials (discovered 2 exits: [*Mat] / *Sub) -10/Subcaves (discovered 2 exits: [*Mat] / *Scr) -9/Scraptown (discovered 2 exits: *Fac x2) -6/Factory (discovered 6 exits: Fac x4 / *Low x2) -6/Lower Caves -6/Lower Caves -6/Zion -5/Proximity Caves -5/Factory (discovered 4 exits: *Fac x4) -4/Factory (discovered 4 exits: *Res x3 / Ext) -3/Research (discovered 5 exits: Res x2 / Arm / *Qua x2) -3/Quarantine (discovered 1 exit: *Res) History --------- Turn | Location | Event 41 | -11/Scrapyard | Discovered new exit (range 15) 117 | -11/Scrapyard | Entered Materials 323 | -10/Materials | Build established: Mutant 532 | -10/Materials | Discovered new exit (range 13) 638 | -10/Materials | Discovered new exit (range 11) 649 | -10/Materials | Entered Subcaves 650 | -10/Subcaves | Approached by a straggling Scientist 822 | -10/Subcaves | Discovered new exit (range 15) 896 | -10/Subcaves | Learned location of Zion (-6) 965 | -10/Subcaves | Shifting Twisted Machinery released Scrap Shield 972 | -10/Subcaves | Shifting Twisted Machinery released Sub. Shrapnel Launcher 1076 | -10/Subcaves | Visited Clippyterm 1079 | -10/Subcaves | Learned Research security intel 1079 | -10/Subcaves | Learned Research machine intel 1206 | -10/Subcaves | Shifting Twisted Machinery released Flamer 1233 | -10/Subcaves | Shifting Twisted Machinery released Sub. Beam Cannon 1239 | -10/Subcaves | Disturbed a concealed Subdweller 1752 | -10/Subcaves | Entered Scraptown 1805 | -9/Scraptown | Visited Red Mages 1858 | -9/Scraptown | Visited Symbiants 1871 | -9/Scraptown | Visited Comm Corps 1877 | -9/Scraptown | Visited Shadow of the Wyrm 1898 | -9/Scraptown | Visited SPCMW 1922 | -9/Scraptown | Visited UFD Registry 1922 | -9/Scraptown | Registered with UFD as "Fiberform" 1942 | -9/Scraptown | Visited Assassins FH 1975 | -9/Scraptown | Visited Cyclists 1990 | -9/Scraptown | Entered Cyclist Reading Room 1996 | -9/Scraptown | Learned location of Exiles (-9) 2176 | -9/Scraptown | Heard Great Nut preacher, LISTEN AND RECITE! 2296 | -9/Scraptown | Scanned Subdweller tech in exchange for log data 2298 | -9/Scraptown | Learned Research garrison access intel 2300 | -9/Scraptown | Learned location of 1 exit from Research 2674 | -9/Scraptown | Discovered new exit (range 11) 2839 | -9/Scraptown | Visited Junk Repository 2869 | -9/Scraptown | Visited Junk Repository 2903 | -9/Scraptown | Visited Scrap Suit Storage 2920 | -9/Scraptown | Visited Abandonware Association 2931 | -9/Scraptown | Learned abandonware demo "SHUTEYE.EXE" 2956 | -9/Scraptown | Visited Observation Area 2974 | -9/Scraptown | Visited DA-N13 Charitable Foundation 2978 | -9/Scraptown | Found DCF Scrap (31 items) 3010 | -9/Scraptown | Visited Cartography Club 3044 | -9/Scraptown | Visited A0-MCA Data Center 3053 | -9/Scraptown | Given a B+ rating by A0-MCA 3059 | -9/Scraptown | Found A0-MCA's Component Scanner 3120 | -9/Scraptown | Delivered Scrap Shield to a Scientist 3213 | -9/Scraptown | Visited Curators Association 3477 | -9/Scraptown | Visited Infowarlord's Domain 3609 | -9/Scraptown | Build established: Derelict-Mutant 3618 | -9/Scraptown | Learned location of Archives (-4) 3618 | -9/Scraptown | Learned location of Hub_04(d) (-4) 3618 | -9/Scraptown | Learned 8 Materials zone layouts 3618 | -9/Scraptown | Learned location of Quarantine (-3) 3618 | -9/Scraptown | Learned 16 Factory zone layouts 3618 | -9/Scraptown | Learned 20 Factory zone layouts 3618 | -9/Scraptown | Learned 24 Factory zone layouts 3618 | -9/Scraptown | Learned 8 Research zone layouts 3618 | -9/Scraptown | Learned 4 Storage zone layouts 3618 | -9/Scraptown | Learned 20 Lower Caves zone layouts 3618 | -9/Scraptown | Learned 24 Upper Caves zone layouts 3618 | -9/Scraptown | Learned 20 Proximity Caves zone layouts 3618 | -9/Scraptown | Learned location of 2 exits from Research 3618 | -9/Scraptown | Learned location of 1 exit from Lower Caves 3618 | -9/Scraptown | Learned location of 1 exit from Upper Caves 3659 | -9/Scraptown | Found Deep Structural Scanner 3928 | -9/Scraptown | Found Scrap Suit 3959 | -9/Scraptown | Found Exp. Signal Interpreter 4047 | -9/Scraptown | Build established: Mutant 4162 | -9/Scraptown | Met Optimus 4162 | -9/Scraptown | Accepted into 0bPrime 4562 | -9/Scraptown | Civil war broke out across Scraptown 4578 | -9/Scraptown | Found Ballwheel 4593 | -9/Scraptown | Found Surveybot 24 Chip 4636 | -9/Scraptown | Identified exit to Factory 4636 | -9/Scraptown | Found Prototype Processor 4648 | -9/Scraptown | Lost 7 allies 4701 | -9/Scraptown | Lost 3 allies 4706 | -9/Scraptown | Entered Factory 4706 | -6/Factory | Evolved 8 slots: Propulsion x2, Utility x6 4707 | -6/Factory | Identified exit to Factory 4707 | -6/Factory | Identified exit to Lower Caves 4711 | -6/Factory | Identified Expert System 4978 | -6/Factory | Build established: Hacker-Mutant 5310 | -6/Factory | Entered Lower Caves 5311 | -6/Lower Caves | Identified exit to Lower Caves 5312 | -6/Lower Caves | UFD Scientist delivered a prototype 5315 | -6/Lower Caves | Found Prototype Protection 5460 | -6/Lower Caves | Learned Factory emergency access door positions 5579 | -6/Lower Caves | Entered another Lower Caves area 5843 | -6/Lower Caves | Discovered new exit (range 12) 5848 | -6/Lower Caves | Identified exit to Zion 5849 | -6/Lower Caves | Entered Zion 5850 | -6/Zion | Identified exit to Proximity Caves 6204 | -6/Zion | Learned location of Warlord (-5) 6221 | -6/Zion | Given the Hacking Drone Bay 6223 | -6/Zion | Found Prototype Device 6341 | -6/Zion | Turned away by Imprinter 6578 | -6/Zion | Entered Proximity Caves 6691 | -5/Proximity Caves | Learned Factory terminal intel 6799 | -5/Proximity Caves | Spotter reported a threat 6805 | -5/Proximity Caves | Entered Factory 6805 | -5/Factory | Evolved 2 slots: Utility x2 6807 | -5/Factory | Loaded intel: 26 terminal locations 6808 | -5/Factory | Identified Enh. Scrap Shield 6938 | -5/Factory | Crushed by falling debris 7098 | -5/Factory | Identified exit to Factory 7141 | -5/Factory | Fabricated Plasma Cutter (x2) 7192 | -5/Factory | Entered another Factory area 7192 | -4/Factory | Accompanied by 1 ally 7192 | -4/Factory | Evolved 2 slots: Utility x2 7193 | -4/Factory | Identified exit to Research 7193 | -4/Factory | Identified exit to Extension 7634 | -4/Factory | Entered Research 7634 | -3/Research | Accompanied by 1 ally 7634 | -3/Research | Evolved 2 slots: Utility x2 7635 | -3/Research | Identified exit to Quarantine 7636 | -3/Research | Identified exit to Research 7636 | -3/Research | Identified exit to Armory 7639 | -3/Research | Loaded intel: 129 machine locations 7640 | -3/Research | Loaded intel: 4 garrison access locations 8701 | -3/Research | Spotted B-86 Titan 8716 | -3/Research | Destroyed B-86 Titan 8830 | -3/Research | Build established: Scavenger-Mutant 9165 | -3/Research | Central database locked down 9254 | -3/Research | Entered Quarantine 9372 | -3/Quarantine | Cryocooling Duct disabled 9387 | -3/Quarantine | Ambient heat levels rising (+20) 9387 | -3/Quarantine | Non-combat units ordered to evacuate 9401 | -3/Quarantine | Garrison activated, responded to threat 9420 | -3/Quarantine | Lost 5 allies 9442 | -3/Quarantine | Destroyed 8 combat bots 9551 | -3/Quarantine | Found Alien Artifact 9551 | -3/Quarantine | Identified Phase Armor 9777 | -3/Quarantine | Found Alien Artifact 9840 | -3/Quarantine | System corruption reached 10% 9938 | -3/Quarantine | Found Alien Artifact 9938 | -3/Quarantine | Identified Subatomic Replicator 9999 | -3/Quarantine | Found Alien Artifact 10016 | -3/Quarantine | Spotted Alpha 7 10025 | -3/Quarantine | Discovered exit to Research (range 16) 10254 | -3/Quarantine | First assault squad dispatched 10259 | -3/Quarantine | Lost 10 parts (1p1n5u3w) 10296 | -3/Quarantine | Core integrity fell below 50% 10326 | -3/Quarantine | System corruption reached 30% 10361 | -3/Quarantine | Lost 5 parts (3u2w) 10490 | -3/Quarantine | Found Alien Artifact 10490 | -3/Quarantine | Identified Core Reset Matrix 10490 | -3/Quarantine | Identified Hpw. Transdimensional Reconstructor 10490 | -3/Quarantine | Identified Terrabomb 10490 | -3/Quarantine | Used Core Reset Matrix 10494 | -3/Quarantine | Detected hypermatrix surge 10494 | -3/Quarantine | Sensed 11 artifacts in vicinity 10504 | -3/Quarantine | Identified Hacking Drone Bay 10547 | -3/Quarantine | Found Core Cannon 10600 | -3/Quarantine | Discovered exit to Research (range 14) 10663 | -3/Quarantine | Found Dimensional Node Initializer 10762 | -3/Quarantine | Warped through subspace 10784 | -3/Quarantine | Lost 4 parts (1n3u) 10804 | -3/Quarantine | Core integrity fell below 20% 11008 | -3/Quarantine | Destroyed by P-80 Master with Gamma Rifle Last Messages --------------- 10978_ Imp. Terrain Scanner destroyed. 10981_ I-47 Archangel Com. Wheel blasted off. 10981_ I-47 Archangel knocked back. 10981_ G-73 Enforcer knocked back. 10986_ P-80 Master knocked back. 10987_ Linear Accelerator destroyed. 10988_ Rnf. Fission Core destroyed. 10994_ I-47 Archangel destroyed. 10994_ Myomer Leg destroyed. 10995_ System corrupted: Centrium Wheel rejected. 10996_ G-73 Enforcer destroyed. 10998_ G-67 Veteran knocked back. 10998_ Adv. Heat Sink destroyed. 11000_ System corrupted: Linear Accelerator jammed. 11004_ ALERT: Unidentified disturbance in Zone 3U, assault force dispatched. 11004_ Flexi-carbon Leg destroyed. 11006_ Acquired Centrium Wheel. Map ----- +----------------------------------------------------+ | ???????# """ + " #????????????????? | | ???????# """ # " " """ #????????????????? | | ??????????? # " """ ##???????#???????? | | ???????????#### " " """ "#???????????????? | | ???????# " "#?????#?????????? | | ???????+ # ==! [ ##???????????????? | | ???????# " """ # = == #???????????#????? | | ????????? """ """ # == ! #????????????????? | | ???????????T """ # == #????????????????? | | ???????????"" # #???##?????#?????? | | ???????? "" ###"#/########????????????????? | | ???????? #???##?????????????????? | | ???????# ] #????##??????????????#?? | | ???????# #???????????????????#??? | | ???????# #??????? ?#######???#??? | | ??????????############ #?????????# #???#??? | | ?????????#############o w # ????????# "" #??????? | | ????????## # #?????????# """#?#????? | | ?????????# # #????? ???# "#??????? | | ?????????# """"""""" #% #??""?""??#! """#??????? | | ?????????# """ """ # # ????????# "" #??????? | | ?????????# + ! +???????? # #????#?? | | ?????????# # % ############+####??????? | | ?????????# #=% ; + #?#???????? | | ????#????######+"##### !!%# """"" ## #?????????? | | ???????????# ! # @# " """ ## ##????#???? | | ???????????# # # "" " ## ##??#?#?#?? | | ???????????# "" # =;= " ## #????#????? | | ???????????# "" ; %%p! % "" ## #?????????? | | ??????????## "" # %[ % ## #??#??????? | | ???????????# # #% ## #????#???#? | | ???????????# # % #####+###### ###???????? | | ???????????# = =[* ! # [ ###??#????# | | ???????????##### * ### #### [###???????? | | ???????????#???#"R*#?# ##?#! #????????? | | ???????????????#"""#?# #?## #?#??#???? | | ????????#??????#####?# ########??#####????????# | | ????????????#########; #######???##???????????? | | ????????????# # # """#????????#???????? | | ????????????# """""" # # """#????????????#???? | | ????????????# ""S""" # # ""##?#??#???#??????? | | ????????????# """ # # """#??#?????#?????#?? | | ????????????# + + """#?????#??????????? | | ????????????# """ # #######????????????????? | | ????????????# """ *! # ##????##???????????????? | | ????????????# """ *! # #??????????#???????????? | | ????????????# * [######????????#?????????????? | | ????????????##########???????????????????????????? | | ?????????????????????????????????????????????????? | | ????????????????????????????????????#????????????? | +----------------------------------------------------+ Best States ------------- Heat Dissipation 153 Coolant Potential 50 Energy Generation 23 Energy Capacity 540 Matter Stores 300 Matter Capacity 300 Sight Range 16 Robot Scan Range 16 Terrain Scan Range 16 Terrain Scan Density 10 ECM Strength 2 Armor Coverage 1200 Resistance: KI 10 Power Shielding 66 Phase Shifting 10 Evasion (%) 55 Targeting Accuracy 6 Target Analysis 8 Recoil Reduction 4 Offensive Hacking 32 Defensive Hacking 20 Trap Extractor Capacity 8 Item Schematics ----------------- None Robot Schematics ------------------ None Fabricated ------------ Plasma Cutter | x2 | -5/Factory Repaired ---------- Nothing Studied --------- None Alien Tech Used ----------------- Phase Armor Subatomic Replicator Core Reset Matrix High-powered Transdimensional Reconstructor Achievements -------------- Loot Taster Uncivil War Challenges ------------ None Game ------ Seed LinearWardroneFirepult Manual? 0 Play Time 03:08:32 Cumulative 320.0 hours Start 2026.08.20 @ 16:25:51 End 2026.08.21 @ 11:14:36 Sessions 5 Manual Loads 0 Difficulty Rogue Special Mode None Game No. 99 Rogue 72 Adventurer 27 Explorer 0 Win Type - Total 18 Types 12/1/2/1/1/0/0/0/0/1 Lore% 76 Gallery% 66 Achievement% 61 Wizard Run 0 Options --------- Layout 1 ASCII 0 Keyboard 0 Movement Numpad Keybinds 1 Fullscreen 1 Font 24/Smallcaps Map View 50x35 Zoom Use 0% Tactical HUD 1 Map Filters NONE Filters NONE Steam 1 RUN: 3a821c80-c392-4965-a89d-9da1302ef199